Cogmind - Beta 17.1 @@@ ROGUE MODE // 2026.09.07 @ 19:05:12 // Winter2019/RPGLIKE Player: obl-vn Result: Destroyed by YI-UF0 with YI-UF0's Doublenader Performance ------------- Evolutions (0) 0 Regions Visited (2) 400 Robots Destroyed (19) 95 Value Destroyed (435) 435 Prototype IDs (0) 0 Alien Tech Used (0) 0 Bonus (0) 0 TOTAL SCORE: 930 Bonus ------- None Cogmind --------- Core Integrity 0/600 Matter 289/300 Energy 160/160 System Corruption 1% Temperature Cool (0) Movement Flying (37) Location -10/Mines Parts ------- > --- POWER (1) -------- Light Nuclear Core > --- PROPULSION (3) --- Flight Unit Flight Unit > --- UTILITY (4) ------ Improved Targeting Computer Improved Targeting Computer ECM Suite ECM Suite > --- WEAPON (1) ------- Light Assault Rifle > --- INVENTORY (0) ---- (None) Peak State ------------ > --- POWER ------------ Light Nuclear Core > --- PROPULSION ------- Flight Unit Flight Unit Flight Unit > --- UTILITY ---------- Improved Targeting Computer Improved Targeting Computer ECM Suite ECM Suite > --- WEAPON ----------- EM Pulse Gun > --- INVENTORY -------- (None) [Rating: 13] Favorites ----------- Power Light Nuclear Core Engine Ion Engine Power Core Light Nuclear Core Propulsion Flight Unit Wheel Wheel Flight Unit Flight Unit Utility ECM Suite Device ECM Suite Processor Improved Targeting Computer Weapon EM Pulse Gun Energy Gun EM Pulse Gun Ballistic Gun Light Assault Rifle Build | -11 -10 -10 ------- Run | Yrd Mat Min Slots Evolved 5 | . 5 . Power . | . . . Propulsion 2 | . 2 . Utility 3 | . 3 . Weapon . | . . . Parts Attached 13 | 3 9 1 Power 2 | 1 1 . Engine 1 | 1 . . Core 1 | . 1 . Reactor . | . . . Propulsion 4 | 1 3 . Treads . | . . . Leg . | . . . Wheel 1 | 1 . . Hover . | . . . Flight 3 | . 3 . Utility 5 | . 5 . Device 2 | . 2 . Storage . | . . . Processor 3 | . 3 . Hackware . | . . . Protection . | . . . Artifact . | . . . Weapon 2 | 1 . 1 Energy Gun 1 | 1 . . Energy Cannon . | . . . Ballistic Gun 1 | . . 1 Ballistic Cannon . | . . . Launcher . | . . . Special Weapon . | . . . Impact Weapon . | . . . Slashing Weapon . | . . . Piercing Weapon . | . . . Special Melee Weapon . | . . . Unidentified Prototypes . | . . . Corrupted Parts 1 | . . 1 System Corruption 1 | . . 1 Parts Lost 2 | . . 2 Power . | . . . Propulsion 1 | . . 1 Utility . | . . . Weapon 1 | . . 1 Highest Loss Streak 1 | . . 1 To Critical Strikes . | . . . Average Backups . | . . . Power . | . . . Propulsion . | . . . Utility . | . . . Weapon . | . . . Tool/Special . | . . . Unused Backups . | . . . Power . | . . . Propulsion . | . . . Utility . | . . . Weapon . | . . . Tool/Special . | . . . Average Slot Usage (%) 96 | . 96 96 Engine 6 | . 8 . Core 7 | . 6 11 Wheel 1 | . 1 . Flight 31 | . 31 31 Device 19 | . 18 22 Processor 15 | . 13 22 Energy Gun 13 | . 14 6 Peak Build Rating 13 | 3 13 13 Average Rating 9 | 2 9 12 On Entrance 5 | . 3 13 Avg Prop Armor Cover (%) . | . . . Naked Turns . | . . . Heaviest Build 11 | 7 11 11 Greatest Support 17 | 10 17 17 Greatest Overweight (x) . | . . . Average Overweight (x) . | . . . Largest Inventory Capacity . | . . . Average Capacity . | . . . Most Carried . | . . . Average Carried . | . . . Final Capacity . | . . . Final Carried . | . . . Class Distribution -------------------- 100% | Mutant Dominant Class ---------------- Mutant | -10/Materials Mutant | -10/Mines Resources | -11 -10 -10 ----------- Run | Yrd Mat Min Matter Collected 320 | 230 90 . Remotely . | . . . Salvage Created 590 | . 528 62 Parts 42 | . 35 7 Haulers Intercepted 1 | . 1 . Recyclers Shooed . | . . . Parts Field Recycled . | . . . Retrieved Matter . | . . . Parts Self-Destructed . | . . . Prevented . | . . . Parts Restored . | . . . Kills | -11 -10 -10 ------- Run | Yrd Mat Min Combat Hostiles Destroyed 15 | . 12 3 Guns 15 | . 12 3 Classes Destroyed 6 | . 6 . Worker 1 | . 1 . Hauler 1 | . 1 . Operator 1 | . 1 . Watcher 1 | . 1 . Swarmer 9 | . 6 3 Grunt 6 | . 6 . Best Kill Streak 4 | . 4 3 Combat Bots Only 4 | . 4 3 Max Kills in Single Turn 1 | . 1 1 Gunslinging . | . . . Exploded . | . . . Melee . | . . . Uniques/NPCs Destroyed . | . . . Combat | -11 -10 -10 -------- Run | Yrd Mat Min Hostile Shots Fired 86 | . 59 27 Missed 29 | . 17 12 Hits 57 | . 42 15 Projectile 57 | . 42 15 AOE 17 | . . 17 Critical Strikes 3 | . 3 . Damage Taken 1028 | . 477 551 Core 876 | . 399 477 Absorbed by Shields . | . . . Redirected to Core 507 | . 250 257 Core Remaining (%) 100 | 100 . . Volleys Fired 91 | . 69 22 Largest 1 | . 1 1 Hottest 40 | . 40 40 Shots Fired 91 | . 69 22 Gun 91 | . 69 22 Cannon . | . . . Launcher . | . . . Special . | . . . Kinetic 6 | . . 6 Thermal . | . . . Explosive . | . . . Electromagnetic 85 | . 69 16 Robot Hit Streak 6 | . 6 5 Robot Miss Streak 4 | . 4 1 Penetration Max . | . . . Secondary Targets . | . . . Shots Hit Robots 46 | . 33 13 Core Hits 30 | . 22 8 Critical Kills . | . . . Critical Parts Destroyed . | . . . Critical Strikes . | . . . Melee Attacks . | . . . Impact . | . . . Slashing . | . . . Piercing . | . . . Sneak Attacks . | . . . Combat Hostiles . | . . . Follow-up Attacks . | . . . Damage Inflicted 617 | . 457 160 Guns 617 | . 457 160 Cannons . | . . . Explosions . | . . . Melee . | . . . Ramming . | . . . Kinetic 22 | . . 22 Thermal . | . . . Explosive . | . . . Electromagnetic 595 | . 457 138 Impact . | . . . Slashing . | . . . Piercing . | . . . Highest Corruption 1 | . . 1 Average Corruption 1 | . . 1 Corruption Purged . | . . . Corruption Blocked . | . . . Overload Shots . | . . . Overflow Damage . | . . . Projectiles . | . . . Explosions . | . . . Melee . | . . . Knockbacks . | . . . Impact . | . . . Kinetic . | . . . Secondary . | . . . Self-Inflicted Damage . | . . . Shots . | . . . Rammed . | . . . Targets Rammed . | . . . Kicked . | . . . Crushed . | . . . Highest Temperature 246 | . 246 67 Average Temperature 46 | . 53 23 Received Heat Transfer 255 | . 255 . Siege Activations . | . . . Martial Activations . | . . . Shielding Activations . | . . . Robots Disrupted . | . . . Combat Hostiles . | . . . Robots Corrupted . | . . . Combat Hostiles . | . . . Parts Fried 2 | . 2 . Impact Corruptions . | . . . Robots Melted . | . . . Combat Hostiles . | . . . Parts Melted . | . . . Heat Transferred . | . . . Parts Sabotaged . | . . . Parts Stolen . | . . . Parts Stripped . | . . . Power Chain Reactions . | . . . Alert | -11 -10 -10 ------- Run | Yrd Mat Min Maximum Alert Level 1 | . 1 . Low Security (%) 71 | 100 66 100 Level 1 28 | . 33 . Level 2 . | . . . Level 3 . | . . . Level 4 . | . . . Level 5 . | . . . High Security . | . . . Max Security . | . . . Peak Influence 255 | . 255 114 Initial 39 | . . 39 Average 138 | . 152 87 Influence Increases 520 | . 435 85 Destroy 0b10 Robot/C 300 | . 240 60 Destroy 0b10 Robot/NC 20 | . 20 . Destroy Leader 54 | . 44 10 Successful Hack 26 | . 26 . Disable Machine 120 | . 105 15 Influence Decreases 466 | . 332 134 Entered New Map 64 | . . 64 Time Decay 382 | . 332 50 Lost Part 20 | . . 20 Squads Dispatched . | . . . Investigation . | . . . Extermination . | . . . Reinforcement . | . . . Assault . | . . . Garrison . | . . . Intercept . | . . . Searches Triggered . | . . . Construction Impeded . | . . . Haulers Reinforced . | . . . Active Scanning Responses . | . . . Cargo Convoy Interrupts . | . . . Stealth | -11 -10 -10 --------- Run | Yrd Mat Min Distress Signals 1 | . 1 . Communications Jammed . | . . . Distress Signals . | . . . Times Spotted 36 | . 21 15 Peak Tracking Total 4 | . 4 2 Tactical Retreats 6 | . 2 4 ECM-based Alert Blocks 5 | . 5 . Traps | -11 -10 -10 ------- Run | Yrd Mat Min Traps Triggered . | . . . Indirectly . | . . . Trap Hack Attempts . | . . . Triggered . | . . . Disarmed . | . . . Reprogrammed . | . . . Reused . | . . . Traps Extracted . | . . . Installed . | . . . Triggered . | . . . Machines | -11 -10 -10 ---------- Run | Yrd Mat Min Machines Disabled 8 | . 7 1 Max in Single Turn 1 | . 1 1 Machines Repaired . | . . . Machines Dismantled . | . . . Machines Sabotaged . | . . . Overloaded Fab Kills . | . . . Hacking | -11 -10 -10 --------- Run | Yrd Mat Min Machines Accessed 6 | . 6 . Terminals 6 | . 6 . Fabricators . | . . . Repair Stations . | . . . Recycling Units . | . . . Scanalyzers . | . . . Garrison Access . | . . . Total Hacks 12 | . 12 . Successful 8 | . 8 . Failed 3 | . 3 . Catastrophic . | . . . Database Lockouts 1 | . 1 . Manual 12 | . 12 . Terminals 12 | . 12 . Fabricators . | . . . Repair Stations . | . . . Recycling Units . | . . . Scanalyzers . | . . . Garrison Access . | . . . Terminal Hacks 1 | . 1 . Robot Analysis 1 | . 1 . Fabricator Hacks . | . . . Repair Station Hacks . | . . . Recycling Unit Hacks . | . . . Scanalyzer . | . . . Garrison Access Hacks . | . . . Unauthorized Hacks 7 | . 7 . Terminals 7 | . 7 . Botnet 2 | . 2 . Skim 5 | . 5 . Fabricators . | . . . Repair Stations . | . . . Recycling Units . | . . . Scanalyzers . | . . . Garrison Access . | . . . Data Cores Recovered 1 | . 1 . Used . | . . . Hacking Detections 4 | . 4 . Full Trace Events . | . . . Feedback Events . | . . . Feedback Blocked . | . . . Robot Schematics Acquired . | . . . Robots Built . | . . . Authchips . | . . . Time . | . . . Total Robot Build Rating . | . . . Part Schematics Acquired . | . . . Parts Built . | . . . Authchips . | . . . Time . | . . . Total Part Build Rating . | . . . Part Studies Acquired . | . . . Parts Repaired . | . . . Time . | . . . Parts Recycled . | . . . Recycled Matter . | . . . Retrieved Matter . | . . . Retrieved Components . | . . . Parts Scanalyzed . | . . . Part Schematics Acquired . | . . . Parts Damaged . | . . . Bothacking | -11 -10 -10 ------------ Run | Yrd Mat Min Used RIF Installer . | . . . Robots Hacked . | . . . Non-combat . | . . . Combat . | . . . Robot Hacks Applied . | . . . Relay Couplers Released . | . . . Fabnet Peak Effective % . | . . . Robots Rewired . | . . . Allies Hacked . | . . . Hacks Repelled . | . . . Allies | -11 -10 -10 -------- Run | Yrd Mat Min Total Allies . | . . . Largest Group . | . . . Highest-Rated Group . | . . . Highest-Rated Ally . | . . . Total Orders . | . . . Ally Attacks . | . . . Total Damage . | . . . Kills . | . . . Allies Corrupted . | . . . Allies Melted . | . . . Intel | -11 -10 -10 ------- Run | Yrd Mat Min Active Infowar (turns) 610 | . 496 114 ECM 610 | . 496 114 Robot Analysis Total 1 | . 1 . Derelict Logs Recovered 1 | . . 1 Drone Launches . | . . . Drone Recoveries . | . . . Exploration | -11 -10 -10 ------------- Run | Yrd Mat Min Turns Passed 910 | 36 760 114 Spaces Moved 805 | 47 587 171 Core 18 | 18 . . Treads . | . . . Legs . | . . . Wheels 78 | 29 49 . Hover . | . . . Flight 709 | . 538 171 Fastest Speed 34 | 50 34 34 Average Speed 40 | 68 39 34 Slowest Speed 80 | 80 80 37 Overloaded Moves . | . . . Propulsion Burnouts . | . . . Robots Hopped 3 | . 2 1 Potential Cave-ins . | . . . Cave-ins Triggered . | . . . Exploration Rate (%) 43 | 3 97 29 Regions Visited 2 Branch Regions 1 Pre-discovered Areas 1 | . 1 . Known Exits Taken . | . . . Unknown Exits Taken 2 | 1 1 . Scrap Searched 1 | . . 1 Spaces Dug . | . . . Terrain Destroyed . | . . . Melee . | . . . Projectile . | . . . AOE . | . . . Terrain Rammed . | . . . Walls Destroyed . | . . . Machines Disabled . | . . . Actions | -11 -10 -10 --------- Run | Yrd Mat Min Total 1293 | 49 1040 204 Wait 374 | . 363 11 Move 797 | 46 582 169 Hop 3 | . 2 1 Pick Up . | . . . Fast Attach 11 | 3 7 1 Attach . | . . . Detach . | . . . Swap 2 | . 2 . Drop 2 | . 2 . Fire 91 | . 69 22 Melee . | . . . Ram . | . . . Kick . | . . . Crush . | . . . Escape Stasis . | . . . Rewire . | . . . Trap . | . . . Miscellaneous 13 | . 13 . Route ------- -11/Scrapyard -10/Materials (discovered 6 exits: *Mat x3 / [*Min x2] / Sub) -10/Mines (discovered 2 exits: *Mat x2) History --------- Turn | Location | Event 3 | -11/Scrapyard | Discovered new exit (range 16) 37 | -11/Scrapyard | Entered Materials 103 | -10/Materials | Discovered new exit (range 3) 113 | -10/Materials | Discovered new exit (range 16) 198 | -10/Materials | Upgraded with Propulsion slot (x2) 252 | -10/Materials | Core integrity fell below 50% 273 | -10/Materials | Discovered new exit (range 16) 283 | -10/Materials | Upgraded with Utility slot (x2) 300 | -10/Materials | Reached level 2 308 | -10/Materials | Build established: Mutant 338 | -10/Materials | Upgraded with Utility slot (x1) 345 | -10/Materials | Discovered new exit (range 12) 357 | -10/Materials | Discovered new exit (range 6) 383 | -10/Materials | Central database locked down 505 | -10/Materials | Learned location of 2 exits from Subcaves 554 | -10/Materials | Learned location of Subcaves (-10) 595 | -10/Materials | Learned Storage stockpile data 626 | -10/Materials | Learned 4 Recycling zone layouts 646 | -10/Materials | Learned Storage stockpile data 682 | -10/Materials | Identified exit to Subcaves 757 | -10/Materials | Learned Storage stockpile data 797 | -10/Materials | Entered Mines 798 | -10/Mines | Identified exit to Materials 879 | -10/Mines | Learned location of 1 exit from Materials 900 | -10/Mines | Core integrity fell below 20% 911 | -10/Mines | Destroyed by YI-UF0 with YI-UF0's Doublenader Last Messages --------------- 00871_ The unstable cave ceiling collapses. 00876_ Searching scrap... 00876_ Found Structural Scanner. 00876_ Found 68 Matter. 00879_ Acquired derelict log, extracted data. Data stored: Materials exits (x1). 00883_ U-05 Engineer lays Concrete. 00886_ R-06 Scavenger collects Welding Torch. 00889_ Acquired Corrupted Lgt. Assault Rifle. 00889_ Integrated Corrupted Lgt. Assault Rifle (+1). 00896_ U-05 Engineer lays Concrete. 00898_ U-05 Engineer builds a Wall. 00899_ Flight Unit destroyed. 00902_ U-05 Engineer lays Concrete. 00903_ YI-UF0 mumbles something. 00903_ U-05 Engineer lays Concrete. 00904_ YI-UF0 mumbles something. 00905_ U-05 Engineer builds a Wall. 00909_ U-05 Engineer destroyed. Map ----- +----------------------------------------------------+ | | | | | | | | | | | | | | | | | | | | | | | | | | | ?????????????????????????????????????????????????? | | ?????????????????????????????????????????????????? | | ?????????????????????????????????????????????????? | | ????????????????????????????????################## | | ????????????????????????????????# | | ????????????????????????????????# """ """ """ """ | | ????????????????????????????????# """ """ """ """ | | ????????????????????????????????# """ """ """ """ | | ?????????????????????????????#### | | ????????????????????##?# ##### "" | | ????????????????????# # " | | ??????????????? ## ### =%<% | | ??????????????# t =@ = g | | ?????????????# = = | | ?????????????# # " | | ?????????????## ???### """ "" | | ??????????????????????## # # ## | | ???????????????????????####### ######### ######## | | ?????????????????????????????# #???????# ##### | | ?????????????????????????????# #???????# ## # #^ | | ?????????????????????????????# #????#### # # | | ?????????????????????????????# #???## ## ^^ | | ?????????????????????????????# ##### #### # | | ?????????????????????????????# #??# | | ?????????????????????????????# ###### ##?## ## | | ???????????????????????????### ###??## ##?## ##? | | ???????????????????????????# #??## ##?####?? | | ???????????????????????????# #?## #??????? | | ???????????????????????????# ### #??????? | | ???????????????????????????# ## #??????? | | ???????????????????????????# %=%## #??????? | | ???????????????????????????# %= # ##??????? | | ???????????????????????????####### #???????? | | ?????????????????????????????????## ???????? | | ??????????????????????????????????## ??????? | | ???????????????????????????????????## ?????? | | ????????????????????????????????????# ?????? | +----------------------------------------------------+ Best States ------------- Heat Dissipation 25 Energy Generation 14 Energy Capacity 250 Matter Stores 300 Matter Capacity 300 Sight Range 16 Terrain Scan Density 10 ECM Strength 1 Evasion (%) 63 Targeting Accuracy 12 Item Schematics ----------------- None Robot Schematics ------------------ None Fabricated ------------ Nothing Repaired ---------- Nothing Studied --------- None Alien Tech Used ----------------- None Achievements -------------- None Challenges ------------ None RPGLIKE | -11 -10 -10 --------- Run | Yrd Mat Min Levels Raised 1 | . 1 . XP Earned 5850 | 3000 1925 925 XP Spent 3800 | . 3800 . Upgrades 6 | . 6 . Propulsion Slot 2 | . 2 . Utility Slot 3 | . 3 . Mass Support 1 | . 1 . Protomatter Created 90 | . 90 . Integrity Restored 270 | . 270 . Core 270 | . 270 . Protomatter Decayed . | . . . Game ------ Seed CoilConcussivePlating Manual? 0 Play Time 00:14:08 Cumulative 272.5 hours Start 2026.09.07 @ 18:41:10 End 2026.09.07 @ 19:05:12 Sessions 1 Manual Loads 0 Difficulty Rogue Special Mode Winter2019/RPGLIKE Game No. 181 Rogue 181 Adventurer 0 Explorer 0 Win Type - Total 6 Types 2/0/2/1/0/0/0/1/0/0 Lore% 63 Gallery% 75 Achievement% 59 Wizard Run 0 Options --------- Layout 2 ASCII 0 Keyboard 0 Movement Mouse Keybinds 0 Fullscreen 1 Font 32/Cog Map View 50x44 Zoom Use 0% Tactical HUD 1 Map Filters NONE Filters NONE Steam 1 RUN: 75c7c304-205c-4de6-b641-206878d2173d